fUST/lending_fUST_20250811
["ID","MTS","AMOUNT","RATE_DAILY","PERIOD"]
[378587956,1754919046198,-460.0,0.00019178,2]
[378587957,1754919046209,-460.0,0.00019178,2]
[378587958,1754919046219,-460.0,0.00019178,2]
[378587959,1754919046231,-460.0,0.00019178,2]
[378587960,1754919046241,-460.0,0.00019178,2]
[378587961,1754919046251,-460.0,0.00019178,2]
[378587962,1754919046260,-1011.33,0.00019178,2]
[378587963,1754919046271,-460.0,0.00019178,2]
[378587964,1754919046281,-460.0,0.00019178,2]
[378587965,1754919046291,-460.0,0.00019178,2]
[378587966,1754919046306,-483.66,0.00019178,2]
[378587967,1754919046318,-460.0,0.00019178,2]
[378587968,1754919046328,-3953.1,0.00019178,2]
[378587969,1754919046338,-460.0,0.00019178,2]
[378587970,1754919046347,-460.0,0.00019178,2]
[378587971,1754919046356,-460.0,0.00019178,2]
[378587972,1754919046366,-971.63,0.00019178,2]
[378587973,1754919046375,-460.0,0.00019178,2]
[378587974,1754919046384,-460.0,0.00019178,2]
[378587976,1754919046394,-460.0,0.00019178,2]
[378587978,1754919046415,-460.0,0.00019178,2]
[378587979,1754919046425,-460.0,0.00019178,2]
[378587980,1754919046435,-460.0,0.00019178,2]
[378587981,1754919046446,-369.03331529,0.00019178,2]
[378587982,1754919046456,-460.0,0.00019178,2]
[378587983,1754919046466,-460.0,0.00019178,2]
[378587984,1754919046477,-605.86,0.00019178,2]
[378587985,1754919046487,-460.0,0.00019178,2]
[378587986,1754919046499,-460.0,0.00019178,2]
[378587987,1754919046509,-401.60406388,0.00019178,2]
[378587988,1754919046519,-460.0,0.00019178,2]
[378587989,1754919046530,-535.64,0.00019178,2]
[378587990,1754919046540,-460.0,0.00019178,2]
[378587991,1754919046550,-460.0,0.00019178,2]
[378587992,1754919046563,-2135.14,0.00019178,2]
[378587993,1754919046579,-460.0,0.00019178,2]
[378587994,1754919046589,-460.0,0.00019178,2]
[378587995,1754919046600,-460.0,0.00019178,2]
[378587996,1754919046610,-460.0,0.00019178,2]
[378587997,1754919046620,-460.0,0.00019178,2]
[378587998,1754919046631,-462.59665446,0.00019178,2]
[378587999,1754919046641,-460.0,0.00019178,2]
[378588000,1754919046652,-460.0,0.00019178,2]
[378588001,1754919046662,-460.0,0.00019178,2]
[378588002,1754919046672,-460.0,0.00019178,2]
[378588003,1754919046682,-460.0,0.00019178,2]
[378588004,1754919046693,-460.0,0.00019178,2]
[378588005,1754919046703,-460.0,0.00019178,2]
[378588006,1754919046714,-460.0,0.00019178,2]
[378588007,1754919046818,-460.0,0.00019178,2]
[378588008,1754919046828,-460.0,0.00019178,2]
[378588009,1754919046838,-549.53,0.00019178,2]
[378588010,1754919046847,-460.0,0.00019178,2]
[378588011,1754919046856,-460.0,0.00019178,2]
[378588012,1754919046866,-460.0,0.00019178,2]
[378588013,1754919046876,-1225.25,0.00019178,2]
[378588014,1754919046885,-460.0,0.00019178,2]
[378588015,1754919046895,-460.0,0.00019178,2]
[378588016,1754919046904,-1050.87,0.00019178,2]
[378588017,1754919046913,-460.0,0.00019178,2]
[378588018,1754919046923,-460.0,0.00019178,2]
[378588019,1754919046932,-856.79,0.00019178,2]
[378588020,1754919046945,-467.50290885,0.00019178,2]
[378588021,1754919046960,-461.83296421,0.00019178,2]
[378588022,1754919046970,-1001.73,0.00019178,2]
[378588023,1754919046979,-460.0,0.00019178,2]
[378588024,1754919046988,-460.0,0.00019178,2]
[378588025,1754919046997,-460.0,0.00019178,2]
[378588026,1754919047011,-460.0,0.00019178,2]
[378588027,1754919047021,-460.0,0.00019178,2]
[378588028,1754919047030,-336.43040096,0.00019178,2]
[378588029,1754919047040,-460.0,0.00019178,2]
[378588030,1754919047049,-460.0,0.00019178,2]
[378588031,1754919047059,-460.0,0.00019178,2]
[378588032,1754919047069,-577.12996841,0.00019178,2]
[378588033,1754919047079,-460.0,0.00019178,2]
[378588034,1754919047088,-358.03180216,0.00019178,2]
[378588035,1754919047098,-1018.15,0.00019178,2]
[378588036,1754919047107,-460.0,0.00019178,2]
[378588037,1754919047116,-460.0,0.00019178,2]
[378588038,1754919047126,-460.0,0.00019178,2]
[378588039,1754919047137,-1637.25,0.00019178,2]
[378588040,1754919047146,-460.0,0.00019178,2]
[378588041,1754919047156,-673.4,0.00019178,2]
[378588042,1754919047165,-460.0,0.00019178,2]
[378588043,1754919047175,-460.0,0.00019178,2]
[378588044,1754919047184,-460.0,0.00019178,2]
[378588045,1754919047194,-460.0,0.00019178,2]
[378588046,1754919047203,-460.0,0.00019178,2]
[378588047,1754919047216,-460.0,0.00019178,2]
[378588048,1754919047230,-460.0,0.00019178,2]
[378588049,1754919047240,-206.81897083,0.00019178,2]
[378588050,1754919047249,-460.0,0.00019178,2]
[378588051,1754919047259,-460.0,0.00019178,2]
[378588052,1754919047268,-2795.15,0.00019178,2]
[378588053,1754919047277,-460.0,0.00019178,2]
[378588054,1754919047288,-1979.8,0.00019178,2]
[378588055,1754919047298,-460.0,0.00019178,2]
[378588056,1754919047308,-460.0,0.00019178,2]
[378588057,1754919047318,-667.66,0.00019178,2]
[378588058,1754919047327,-460.0,0.00019178,2]
[378588059,1754919047337,-460.0,0.00019178,2]
[378588060,1754919047347,-460.0,0.00019178,2]
[378588061,1754919047356,-460.0,0.00019178,2]
[378588062,1754919047365,-462.38926379,0.00019178,2]
[378588063,1754919047375,-480.66,0.00019178,2]
[378588064,1754919047384,-460.0,0.00019178,2]
[378588065,1754919047394,-836.56,0.00019178,2]
[378588066,1754919047403,-987.3,0.00019178,2]
[378588067,1754919047413,-460.0,0.00019178,2]
[378588068,1754919047423,-1384.5,0.00019178,2]
[378588069,1754919047433,-460.0,0.00019178,2]
[378588070,1754919047443,-460.0,0.00019178,2]
[378588071,1754919047452,-460.0,0.00019178,2]
[378588072,1754919047463,-826.6,0.00019178,2]
[378588073,1754919047474,-269.32614068,0.00019178,2]
[378588074,1754919047483,-460.0,0.00019178,2]
[378588075,1754919047492,-460.0,0.00019178,2]
[378588076,1754919047502,-460.0,0.00019178,2]
[378588077,1754919047512,-498.41,0.00019178,2]
[378588078,1754919047522,-967.31,0.00019178,2]
[378588079,1754919047531,-460.0,0.00019178,2]
[378588080,1754919047541,-556.06461915,0.00019178,2]
[378588081,1754919047551,-460.0,0.00019178,2]
[378588082,1754919047560,-460.0,0.00019178,2]
[378588083,1754919047569,-239.8950101,0.00019178,2]
[378588084,1754919047579,-496.37,0.00019178,2]
[378588085,1754919047588,-460.0,0.00019178,2]
[378588086,1754919047598,-460.0,0.00019178,2]
[378588087,1754919047607,-460.0,0.00019178,2]
[378588088,1754919047617,-460.84126169,0.00019178,2]
[378588089,1754919047626,-460.0,0.00019178,2]
[378588090,1754919047636,-460.0,0.00019178,2]
[378588091,1754919047646,-460.0,0.00019178,2]
[378588092,1754919047655,-460.0,0.00019178,2]
[378588093,1754919047665,-460.0,0.00019178,2]
[378588094,1754919047677,-460.0,0.00019178,2]
[378588095,1754919047687,-460.0,0.00019178,2]
[378588096,1754919047696,-1552.45,0.00019178,2]
[378588097,1754919047707,-460.0,0.00019178,2]
[378588098,1754919047716,-460.0,0.00019178,2]
[378588099,1754919047725,-460.0,0.00019178,2]
[378588100,1754919047736,-460.0,0.00019178,2]
[378588101,1754919047745,-5522.57,0.00019178,2]
[378588102,1754919047755,-2280.34,0.00019178,2]
[378588103,1754919047764,-460.0,0.00019178,2]
[378588104,1754919047773,-497.59,0.00019178,2]
[378588105,1754919047783,-460.0,0.00019178,2]
[378588106,1754919047792,-460.0,0.00019178,2]
[378588107,1754919047801,-460.0,0.00019178,2]
[378588108,1754919047811,-460.0,0.00019178,2]
[378588109,1754919047821,-495.38,0.00019178,2]
[378588110,1754919047830,-460.0,0.00019178,2]
[378588111,1754919047840,-304.39506404,0.00019178,2]
[378588112,1754919047849,-460.0,0.00019178,2]
[378588113,1754919047858,-3242.83,0.00019178,2]
[378588114,1754919047868,-1272.79,0.00019178,2]
[378588115,1754919047877,-460.0,0.00019178,2]
[378588116,1754919047887,-739.66,0.00019178,2]
[378588117,1754919047896,-460.0,0.00019178,2]
[378588118,1754919047906,-460.0,0.00019178,2]
[378588119,1754919047916,-1767.27,0.00019178,2]
[378588120,1754919047926,-460.0,0.00019178,2]
[378588121,1754919047935,-460.0,0.00019178,2]
[378588122,1754919047945,-4693.73,0.00019178,2]
[378588123,1754919047955,-972.77,0.00019178,2]
[378588124,1754919047964,-1414.33,0.00019178,2]
[378588125,1754919047973,-2946.27,0.00019178,2]
[378588126,1754919047982,-460.0,0.00019178,2]
[378588127,1754919047992,-460.0,0.00019178,2]
[378588128,1754919048002,-460.0,0.00019178,2]
[378588129,1754919048011,-816.78,0.00019178,2]
[378588130,1754919048021,-809.88,0.00019178,2]
[378588131,1754919048031,-5792.19,0.00019178,2]
[378588132,1754919048040,-460.0,0.00019178,2]
[378588133,1754919048049,-460.0,0.00019178,2]
[378588134,1754919048058,-460.0,0.00019178,2]
[378588135,1754919048068,-460.0,0.00019178,2]
[378588136,1754919048078,-1221.01,0.00019178,2]
[378588137,1754919048087,-1240.59,0.00019178,2]
[378588138,1754919048096,-460.0,0.00019178,2]
[378588139,1754919048106,-2058.68,0.00019178,2]
[378588140,1754919048115,-460.0,0.00019178,2]
[378588141,1754919048125,-479.63,0.00019178,2]
[378588142,1754919048136,-460.0,0.00019178,2]
[378588143,1754919048145,-1568.27,0.00019178,2]
[378588144,1754919048154,-460.0,0.00019178,2]
[378588145,1754919048163,-460.0,0.00019178,2]
[378588146,1754919048173,-460.0,0.00019178,2]
[378588147,1754919048182,-460.0,0.00019178,2]
[378588148,1754919048192,-460.0,0.00019178,2]
[378588149,1754919048203,-460.0,0.00019178,2]
[378588150,1754919048214,-460.0,0.00019178,2]
[378588151,1754919048227,-686.82,0.00019178,2]
[378588152,1754919048237,-460.0,0.00019178,2]
[378588153,1754919048246,-460.0,0.00019178,2]
[378588154,1754919048256,-460.0,0.00019178,2]
[378588155,1754919048266,-460.0,0.00019178,2]
[378588156,1754919048276,-577.48,0.00019178,2]
[378588157,1754919048285,-627.52,0.00019178,2]
[378588158,1754919048295,-460.0,0.00019178,2]
[378588159,1754919048306,-2507.91,0.00019178,2]
[378588160,1754919048315,-460.0,0.00019178,2]
[378588161,1754919048324,-460.0,0.00019178,2]
[378588162,1754919048334,-460.0,0.00019178,2]
[378588163,1754919048343,-460.0,0.00019178,2]
[378588164,1754919048353,-460.0,0.00019178,2]
[378588165,1754919048363,-460.0,0.00019178,2]
[378588166,1754919048373,-793.18,0.00019178,2]
[378588167,1754919048383,-504.36548527,0.00019178,2]
[378588168,1754919048400,-460.0,0.00019178,2]
[378588169,1754919048415,-460.0,0.00019178,2]
[378588170,1754919048426,-460.0,0.00019178,2]
[378588171,1754919048435,-277.11847251,0.00019178,2]
[378588172,1754919048446,-715.76,0.00019178,2]
[378588173,1754919048457,-460.0,0.00019178,2]
[378588174,1754919048466,-460.0,0.00019178,2]
[378588175,1754919048476,-408.57570011,0.00019178,2]
[378588176,1754919048486,-460.0,0.00019178,2]
[378588177,1754919048496,-460.0,0.00019178,2]
[378588178,1754919048505,-460.0,0.00019178,2]
[378588179,1754919048515,-460.0,0.00019178,2]
[378588180,1754919048525,-460.0,0.00019178,2]
[378588181,1754919048535,-460.0,0.00019178,2]
[378588182,1754919048545,-460.0,0.00019178,2]
[378588183,1754919048555,-460.0,0.00019178,2]
[378588184,1754919048565,-460.0,0.00019178,2]
[378588185,1754919048575,-766.13,0.00019178,2]
[378588186,1754919048584,-460.0,0.00019178,2]
[378588187,1754919048594,-460.0,0.00019178,2]
[378588188,1754919048604,-460.0,0.00019178,2]
[378588189,1754919048614,-460.0,0.00019178,2]
[378588190,1754919048624,-500.0,0.00019178,2]
[378588191,1754919048634,-500.0,0.00019178,2]
[378588192,1754919048644,-508.35296366,0.00019178,2]
[378588193,1754919048654,-387.79022982,0.00019178,2]
[378588194,1754919048664,-460.0,0.00019178,2]
[378588195,1754919048673,-4043.18,0.00019178,2]
[378588196,1754919048683,-460.0,0.00019178,2]
[378588197,1754919048692,-3754.87,0.00019178,2]
[378588198,1754919048702,-460.0,0.00019178,2]
[378588199,1754919048712,-460.0,0.00019178,2]
[378588200,1754919048722,-604.08,0.00019178,2]
[378588201,1754919048732,-898.21,0.00019178,2]
[378588202,1754919048742,-460.0,0.00019178,2]
[378588203,1754919048752,-460.0,0.00019178,2]
[378588204,1754919048761,-460.0,0.00019178,2]
[378588205,1754919048771,-460.0,0.00019178,2]
[378588206,1754919048781,-1000.0,0.00019178,2]
[378588207,1754919048791,-785.37,0.00019178,2]
[378588208,1754919048801,-460.0,0.00019178,2]
[378588209,1754919048811,-490.82,0.00019178,2]
[378588210,1754919048820,-5298.29,0.00019178,2]
[378588211,1754919048830,-460.0,0.00019178,2]
[378588212,1754919048840,-460.0,0.00019178,2]
[378588213,1754919048849,-460.0,0.00019178,2]
[378588214,1754919048859,-4101.84,0.00019178,2]
[378588215,1754919048869,-2408.21,0.00019178,2]
[378588216,1754919048878,-460.0,0.00019178,2]
[378588217,1754919048888,-460.0,0.00019178,2]
[378588218,1754919048899,-464.11293408,0.00019178,2]
[378588219,1754919048908,-460.0,0.00019178,2]
[378588220,1754919048918,-460.0,0.00019178,2]
[378588221,1754919048928,-547.02,0.00019178,2]
[378588222,1754919048938,-758.74,0.00019178,2]
[378588223,1754919048948,-460.0,0.00019178,2]
[378588224,1754919048958,-500.0,0.00019178,2]
[378588225,1754919048969,-460.0,0.00019178,2]
[378588226,1754919048979,-460.0,0.00019178,2]
[378588227,1754919048990,-853.74,0.00019178,2]
[378588228,1754919049000,-460.0,0.00019178,2]
[378588229,1754919049009,-732.83,0.00019178,2]
[378588230,1754919049019,-460.0,0.00019178,2]
[378588231,1754919049030,-2338.59,0.00019178,2]
[378588232,1754919049039,-460.0,0.00019178,2]
[378588233,1754919049049,-2338.59,0.00019178,2]
[378588234,1754919049059,-1263.68,0.00019178,2]
[378588235,1754919049068,-2338.59,0.00019178,2]
[378588236,1754919049079,-1263.68,0.00019178,2]
[378588237,1754919049089,-2338.59,0.00019178,2]
[378588238,1754919049099,-1263.68,0.00019178,2]
[378588239,1754919049108,-1263.68,0.00019178,2]
[378588240,1754919049118,-2338.59,0.00019178,2]
[378588241,1754919049128,-1263.68,0.00019178,2]
[378588242,1754919049137,-2338.59,0.00019178,2]
[378588243,1754919049147,-500.0,0.00019178,2]
[378588244,1754919049156,-1263.68,0.00019178,2]
[378588245,1754919049165,-500.0,0.00019178,2]
[378588246,1754919049174,-1263.68,0.00019178,2]
[378588247,1754919049184,-2338.59,0.00019178,2]
[378588248,1754919049194,-500.0,0.00019178,2]
[378588249,1754919049204,-1263.68,0.00019178,2]
[378588250,1754919049218,-1228.24,0.00019178,2]
[378588251,1754919049231,-500.0,0.00019178,2]
[378588252,1754919049240,-1263.68,0.00019178,2]
[378588253,1754919049250,-2338.59,0.00019178,2]
[378588254,1754919049259,-1360.97,0.00019178,2]
[378588255,1754919049269,-500.0,0.00019178,2]
[378588256,1754919049279,-1263.68,0.00019178,2]
[378588257,1754919049288,-500.0,0.00019178,2]
[378588258,1754919049299,-1263.68,0.00019178,2]
[378588259,1754919049310,-1044.02,0.00019178,2]
[378588260,1754919049319,-151.04937474,0.00019178,2]
[378588261,1754919049329,-1263.68,0.00019178,2]
[378588262,1754919049338,-1263.68,0.00019178,2]
[378588263,1754919049348,-2338.59,0.00019178,2]
[378588264,1754919049358,-1263.68,0.00019178,2]
[378588265,1754919049367,-460.0,0.00019178,2]
[378588266,1754919049377,-1263.68,0.00019178,2]
[378588267,1754919049386,-2338.59,0.00019178,2]
[378588268,1754919049395,-1263.68,0.00019178,2]
[378588269,1754919049405,-1263.68,0.00019178,2]
[378588270,1754919049415,-2338.59,0.00019178,2]
[378588271,1754919049424,-1263.68,0.00019178,2]
[378588272,1754919049434,-1263.68,0.00019178,2]
[378588273,1754919049444,-2338.59,0.00019178,2]
[378588274,1754919049453,-1263.68,0.00019178,2]
[378588275,1754919049468,-460.0,0.00019178,2]
[378588276,1754919049478,-1263.68,0.00019178,2]
[378588277,1754919049487,-2338.59,0.00019178,2]
[378588278,1754919049497,-1263.68,0.00019178,2]
[378588279,1754919049507,-1263.68,0.00019178,2]
[378588280,1754919049516,-2338.59,0.00019178,2]
[378588281,1754919049526,-1263.71,0.00019178,2]
[378588282,1754919049536,-2338.59,0.00019178,2]
[378588283,1754919049545,-469.7619666,0.00019178,2]
[378588284,1754919049555,-463.54079946,0.00019178,2]
[378588285,1754919049565,-2338.59,0.00019178,2]
[378588286,1754919049575,-460.0,0.00019178,2]
[378588287,1754919049584,-2338.59,0.00019178,2]
[378588288,1754919049594,-2338.59,0.00019178,2]
[378588289,1754919049604,-2338.59,0.00019178,2]
[378588290,1754919049614,-2338.59,0.00019178,2]
[378588291,1754919049624,-489.61,0.00019178,2]
[378588292,1754919049634,-2338.59,0.00019178,2]
[378588293,1754919049643,-1031.12,0.00019178,2]
[378588294,1754919049653,-2338.59,0.00019178,2]
[378588295,1754919049663,-2338.59,0.00019178,2]
[378588296,1754919049672,-2338.78490023,0.00019178,2]
[378588297,1754919049683,-13325.46,0.00019178,2]
[378588298,1754919049693,-460.0,0.00019178,2]
[378588299,1754919049703,-2239.55,0.00019178,2]
[378588300,1754919049713,-463.38179613,0.00019178,2]
[378588301,1754919049723,-460.0,0.00019178,2]
[378588302,1754919049732,-940.1,0.00019178,2]
[378588303,1754919049741,-940.1,0.00019178,2]
[378588304,1754919049751,-940.1,0.00019178,2]
[378588305,1754919049761,-940.1,0.00019178,2]
[378588306,1754919049770,-940.1,0.00019178,2]
[378588307,1754919049780,-940.1,0.00019178,2]
[378588308,1754919049790,-940.1,0.00019178,2]
[378588309,1754919049799,-940.1,0.00019178,2]
[378588310,1754919049808,-940.1,0.00019178,2]
[378588311,1754919049818,-460.0,0.00019178,2]
[378588312,1754919049827,-460.0,0.00019178,2]
[378588313,1754919049836,-940.1,0.00019178,2]
[378588314,1754919049846,-940.1,0.00019178,2]
[378588315,1754919049855,-940.1,0.00019178,2]
[378588316,1754919049865,-940.1,0.00019178,2]
[378588317,1754919049876,-940.1,0.00019178,2]
[378588318,1754919049886,-940.1,0.00019178,2]
[378588319,1754919049897,-460.0,0.00019178,2]
[378588320,1754919049908,-940.1,0.00019178,2]
[378588321,1754919049918,-940.1,0.00019178,2]
[378588322,1754919049930,-940.1,0.00019178,2]
[378588323,1754919049940,-940.1,0.00019178,2]
[378588324,1754919049950,-460.0,0.00019178,2]
[378588325,1754919049960,-940.1,0.00019178,2]
[378588326,1754919049970,-940.1,0.00019178,2]
[378588327,1754919049980,-940.1,0.00019178,2]
[378588328,1754919049990,-471.55,0.00019178,2]
[378588329,1754919050000,-940.1,0.00019178,2]
[378588330,1754919050010,-940.31879212,0.00019178,2]
[378588331,1754919050020,-460.0,0.00019178,2]
[378588332,1754919050031,-518.09,0.00019178,2]
[378588333,1754919050041,-913.9,0.00019178,2]
[378588334,1754919050051,-460.0,0.00019178,2]
[378588335,1754919050063,-489.84,0.00019178,2]
[378588336,1754919050074,-460.0,0.00019178,2]
[378588337,1754919050084,-460.0,0.00019178,2]
[378588338,1754919050094,-936.99,0.00019178,2]
[378588339,1754919050104,-460.0,0.00019178,2]
[378588340,1754919050116,-460.0,0.00019178,2]
[378588341,1754919050126,-460.0,0.00019178,2]
[378588342,1754919050136,-460.0,0.00019178,2]
[378588343,1754919050146,-460.0,0.00019178,2]
[378588344,1754919050156,-460.0,0.00019178,2]
[378588345,1754919050167,-460.0,0.00019178,2]
[378588346,1754919050177,-460.0,0.00019178,2]
[378588347,1754919050187,-1238.03,0.00019178,2]
[378588348,1754919050196,-460.0,0.00019178,2]
[378588349,1754919050206,-460.0,0.00019178,2]
[378588350,1754919050217,-879.87,0.00019178,2]
[378588351,1754919050232,-460.0,0.00019178,2]
[378588352,1754919050242,-460.0,0.00019178,2]
[378588353,1754919050253,-460.0,0.00019178,2]
[378588354,1754919050263,-460.0,0.00019178,2]
[378588355,1754919050274,-562.89448758,0.00019178,2]
[378588356,1754919050284,-1085.7,0.00019178,2]
[378588357,1754919050293,-460.0,0.00019178,2]
[378588358,1754919050305,-826.36,0.00019178,2]
[378588359,1754919050316,-1578.16,0.00019178,2]
[378588360,1754919050326,-515.41380788,0.00019178,2]
[378588361,1754919050336,-570.56,0.00019178,2]
[378588362,1754919050347,-460.0,0.00019178,2]
[378588363,1754919050356,-1286.85,0.00019178,2]
[378588364,1754919050366,-460.0,0.00019178,2]
[378588365,1754919050376,-460.0,0.00019178,2]
[378588366,1754919050386,-460.0,0.00019178,2]
[378588367,1754919050395,-460.0,0.00019178,2]
[378588368,1754919050405,-460.0,0.00019178,2]
[378588369,1754919050415,-460.0,0.00019178,2]
[378588370,1754919050424,-460.0,0.00019178,2]
[378588371,1754919050434,-460.0,0.00019178,2]
[378588372,1754919050444,-1373.46,0.00019178,2]
[378588373,1754919050454,-465.8770543,0.00019178,2]
[378588374,1754919050465,-460.0,0.00019178,2]
[378588375,1754919050475,-460.0,0.00019178,2]
[378588376,1754919050484,-460.0,0.00019178,2]
[378588377,1754919050494,-460.0,0.00019178,2]
[378588378,1754919050504,-462.03153307,0.00019178,2]
[378588379,1754919050514,-975.1,0.00019178,2]
[378588380,1754919050524,-460.0,0.00019178,2]
[378588381,1754919050534,-460.0,0.00019178,2]
[378588382,1754919050544,-460.0,0.00019178,2]
[378588383,1754919050555,-460.0,0.00019178,2]
[378588384,1754919050565,-460.0,0.00019178,2]
[378588385,1754919050575,-460.0,0.00019178,2]
[378588386,1754919050586,-460.0,0.00019178,2]
[378588387,1754919050596,-460.0,0.00019178,2]
[378588388,1754919050607,-460.0,0.00019178,2]
[378588389,1754919050617,-460.0,0.00019178,2]
[378588390,1754919050627,-678.54,0.00019178,2]
[378588391,1754919050636,-460.0,0.00019178,2]
[378588392,1754919050646,-460.0,0.00019178,2]
[378588393,1754919050656,-460.69784821,0.00019178,2]
[378588394,1754919050666,-460.0,0.00019178,2]
[378588395,1754919050676,-460.0,0.00019178,2]
[378588396,1754919050687,-460.0,0.00019178,2]
[378588397,1754919050699,-551.92161201,0.00019178,2]
[378588398,1754919050709,-460.0,0.00019178,2]
[378588399,1754919050719,-1008.38,0.00019178,2]
[378588400,1754919050730,-460.0,0.00019178,2]
[378588401,1754919050740,-460.0,0.00019178,2]
[378588402,1754919050750,-460.0,0.00019178,2]
[378588403,1754919050760,-460.0,0.00019178,2]
[378588404,1754919050770,-666.0,0.00019178,2]
[378588405,1754919050780,-2465.54013957,0.00019178,2]
[378588406,1754919050790,-1819.0,0.00019198,2]
[378588407,1754919050801,-151.0,0.000192,2]
[378588408,1754919050811,-151.0,0.000192,2]
[378588409,1754919050820,-151.0,0.000192,2]
[378588410,1754919050831,-2512.0,0.00019229,2]
[378588411,1754919050843,-5844.71105176,0.00019237,2]
[378588412,1754919050852,-500.0,0.0001924,2]
[378588413,1754919050862,-1000.0,0.0001924,2]
[378588414,1754919050872,-500.0,0.00019241,2]
[378588415,1754919050882,-1000.0,0.00019241,2]
[378588416,1754919050892,-1819.0,0.00019242,2]
[378588417,1754919050902,-200.0,0.00019255,15]
[378588418,1754919050912,-500.0,0.0001926,2]
[378588419,1754919050923,-500.0,0.0001926,2]
[378588420,1754919050934,-1000.0,0.0001926,2]
[378588421,1754919050944,-1000.0,0.0001926,2]
[378588422,1754919050954,-500.0,0.00019261,2]
[378588423,1754919050967,-500.0,0.00019261,2]
[378588424,1754919050977,-1000.0,0.00019261,2]
[378588425,1754919050987,-162.35253676,0.00019261,2]
[378588426,1754919050997,-319.98230024,0.00019262,2]
[378588427,1754919051008,-151.0,0.000193,2]
[378588428,1754919051018,-151.0,0.000193,2]
[378588429,1754919051028,-345.0,0.00019313,2]
[378588430,1754919051038,-100000.0,0.00019329,2]
[378588431,1754919051049,-17026.44454647,0.00019347,2]
[378588432,1754919051059,-8014.24033929,0.00019352,2]
[378588433,1754919051069,-151.0,0.000194,2]
[378588434,1754919051079,-500.0,0.00019421,2]
[378588435,1754919051089,-516.7285694,0.00019421,2]
[378588436,1754919051100,-1819.0,0.00019438,2]
[378588437,1754919051110,-500.0,0.00019447,2]
[378588438,1754919051120,-151.0,0.00019452,2]
[378588439,1754919051131,-151.0,0.00019452,2]
[378588440,1754919051141,-460.0,0.00019452,2]
[378588441,1754919051151,-460.0,0.00019452,2]
[378588442,1754919051161,-460.0,0.00019452,2]
[378588443,1754919051171,-460.0,0.00019452,2]
[378588444,1754919051182,-460.78191841,0.00019452,2]
[378588445,1754919051193,-500.90729538,0.00019452,2]
[378588446,1754919051203,-460.0,0.00019452,2]
[378588447,1754919051216,-715.76,0.00019452,2]
[378588448,1754919051236,-703.51,0.00019452,2]
[378588449,1754919051255,-151.0,0.00019452,2]
[378588450,1754919051274,-462.04373992,0.00019452,2]
[378588451,1754919051295,-460.0,0.00019452,2]
[378588452,1754919051306,-460.0,0.00019452,2]
[378588453,1754919051316,-460.0,0.00019452,2]
[378588454,1754919051326,-460.0,0.00019452,2]
[378588455,1754919051336,-460.0,0.00019452,2]
[378588456,1754919051346,-460.0,0.00019452,2]
[378588457,1754919051356,-666.28,0.00019452,2]